Workbook

Sheet Лист1
I1: К постановлению Администрации Североуральского городского округа от14.01.2015г. № 10
A2: Приложение № 2 к муниципальной программе Североуральского городского округа «Развитие жилищно-коммунального хозяйства и транспортного обслуживания населения, повышение энергетической эффективности и охрана окружающей среды в Североуральском городском округе» на 2014-2020 годы
A3: План мероприятий
A4: по выполнению муниципальной программы Североуральского городского округа
A5: «Развитие жилищно-коммунального хозяйства и транспортного обслуживания населения,
A6: повышение энергетической эффективности и охрана окружающей среды в Североуральском городском округе» на 2014-2020 годы
A8: № строки | B8: Наименование мероприятия/ Источники расходов на финансирование | C8: Объем расходов на выполнение мероприятия за счет всех источников ресурсного обеспечения, тыс. руб. | K8: Номер строки целевых показателей, на достижение которых направлены мероприятия
C9: Всего | D9: первый год | E9: второй год | F9: третий год | G9: четвертый год | H9: пятый год | I9: шестой год | J9: седьмой год
B10: ВСЕГО по муниципальной программе, в том числе: | C10: =SUM(C11:C13) -> 909,562.2 | D10: =SUM(D11:D13) -> 283,826.9 | E10: =SUM(E11:E13) -> 238,081.8 | F10: 56,041.5 | G10: 82,903.0 | H10: 82,903.0 | I10: 82,903.0 | J10: 82,903.0 | K10: Х
B11: местный бюджет | C11: =SUM(D11:J11) -> 573,775.2 | D11: =SUM(D15+D19) -> 92,792.8 | E11: =SUM(E15+E19) -> 93,663.9 | F11: 55,974.5 | G11: 82,836.0 | H11: 82,836.0 | I11: 82,836.0 | J11: 82,836.0
B12: областной бюджет | C12: =SUM(D12:J12) -> 223,184.9 | D12: =SUM(D16+D20) -> 109,216.1 | E12: =SUM(E16+E20) -> 113,633.8 | F12: 67.0 | G12: 67.0 | H12: 67.0 | I12: 67.0 | J12: 67.0
B13: федеральный бюджет | C13: =SUM(D13:J13) -> 112,602.1 | D13: =SUM(D21+D17) -> 81,818.0 | E13: =SUM(E21+E17) -> 30,784.1 | F13: 0.0 | G13: 0.0 | H13: 0.0 | I13: 0.0 | J13: 0.0
B14: Капитальные вложения | C14: =SUM(C15:C17) -> 573,382.1 | D14: =SUM(D15:D17) -> 232,761.9 | E14: =SUM(E15:E17) -> 191,046.7 | F14: 8,425.5 | G14: 35,287.0 | H14: 35,287.0 | I14: 35,287.0 | J14: 35,287.0 | K14: Х
B15: местный бюджет | C15: =SUM(D15:J15) -> 240,997.1 | D15: =D29+D92+D141+D164+D190+D224+D263+D282 -> 44,727.8 | E15: =E29+E92+E141+E164+E190+E224+E263+E282 -> 46,695.8 | F15: 8,425.5 | G15: 35,287.0 | H15: 35,287.0 | I15: 35,287.0 | J15: 35,287.0
B16: областной бюджет | C16: =SUM(D16:J16) -> 219,782.9 | D16: =D93+D165+D30 -> 106,216.1 | E16: =E93+E165 -> 113,566.8 | F16: 0.0 | G16: 0.0 | H16: 0.0 | I16: 0.0 | J16: 0.0
B17: федеральный бюджет | C17: =SUM(D17:J17) -> 112,602.1 | D17: =D94+D166 -> 81,818.0 | E17: 30,784.1 | F17: 0.0 | G17: 0.0 | H17: 0.0 | I17: 0.0 | J17: 0.0
B18: Прочие нужды | C18: =SUM(C19:C20) -> 336,180.1 | D18: =SUM(D19:D20) -> 51,065.0 | E18: =SUM(E19:E20) -> 47,035.1 | F18: 47,616.0 | G18: 47,616.0 | H18: 47,616.0 | I18: 47,616.0 | J18: 47,616.0 | K18: Х
B19: местный бюджет | C19: =SUM(D19:J19) -> 332,778.1 | D19: =D44+D115+D150+D182+D233+D272+D298+D201 -> 48,065.0 | E19: 46,968.1 | F19: 47,549.0 | G19: 47,549.0 | H19: 47,549.0 | I19: 47,549.0 | J19: 47,549.0
B20: областной бюджет | C20: =SUM(D20:J20) -> 3,402.0 | D20: =SUM(D116+D297) -> 3,000.0 | E20: 67.0 | F20: 67.0 | G20: 67.0 | H20: 67.0 | I20: 67.0 | J20: 67.0
B21: федеральный бюджет | C21: =SUM(D21:J21) -> 0.0 | D21: 0.0 | E21: =E116 -> 0.0 | F21: 0.0 | G21: 0.0 | H21: 0.0 | I21: 0.0 | J21: 0.0
A22: Подпрограмма 1: Комплексное благоустройство территории Североуральского городского округа
B23: Всего по подпрограмме 1, | C23: =SUM(C25+C26) -> 181,973.9 | D23: =SUM(D25+D26) -> 25,725.2 | E23: =SUM(E25) -> 22,806.2 | F23: 26,688.5 | G23: 26,688.5 | H23: 26,688.5 | I23: 26,688.5 | J23: 26,688.5 | K23: Х
B24: в том числе:
B25: местный бюджет | C25: =SUM(D25:J25) -> 180,759.2 | D25: =SUM(D29+D44) -> 24,510.5 | E25: =SUM(E29+E44) -> 22,806.2 | F25: 26,688.5 | G25: 26,688.5 | H25: 26,688.5 | I25: 26,688.5 | J25: 26,688.5
B26: областной бюджет | C26: =SUM(D26:J26) -> 1,214.7 | D26: =SUM(D30) -> 1,214.7 | E26: =SUM(E30) -> 0.0 | F26: 0.0 | G26: 0.0 | H26: 0.0 | I26: 0.0 | J26: 0.0
A27: 1. Капитальные вложения
B28: Всего по направлению «Капитальные вложения» всего, в том числе | C28: =SUM(D28:J28) -> 37,784.1 | D28: =SUM(D29+D30) -> 3,536.4 | E28: =SUM(E29) -> 2,120.2 | F28: 6,425.5 | G28: 6,425.5 | H28: 6,425.5 | I28: 6,425.5 | J28: 6,425.5 | K28: Х
B29: местный бюджет | C29: =SUM(D29:J29) -> 36,569.4 | D29: =SUM(D40) -> 2,321.7 | E29: =SUM(E40) -> 2,120.2 | F29: 6,425.5 | G29: 6,425.5 | H29: 6,425.5 | I29: 6,425.5 | J29: 6,425.5
B30: областной бюджет | C30: =SUM(D30:J30) -> 1,214.7 | D30: =SUM(D37) -> 1,214.7 | E30: =SUM(E37) -> 0.0 | F30: 0.0 | G30: 0.0 | H30: 0.0 | I30: 0.0 | J30: 0.0
A31: 1.1. Бюджетные инвестиции в объекты капитального строительства
B32: Бюджетные инвестиции в объекты капитального строительства всего, в том числе | C32: 0 | D32: 0 | E32: 0 | F32: 0 | G32: 0 | H32: 0 | I32: 0 | J32: 0 | K32: Х
B33: местный бюджет | C33: 0 | D33: 0 | E33: 0 | F33: 0 | G33: 0 | H33: 0 | I33: 0 | J33: 0
A34: 1.2. Иные капитальные вложения
B35: Всего | C35: =SUM(D35:J35) -> 37,784.1 | D35: =SUM(D36:D37) -> 3,536.4 | E35: =SUM(E36:E37) -> 2,120.2 | F35: 6,425.5 | G35: 6,425.5 | H35: 6,425.5 | I35: 6,425.5 | J35: 6,425.5 | K35: Х
B36: местный бюджет | C36: =SUM(D36:J36) -> 36,569.4 | D36: =SUM(D40) -> 2,321.7 | E36: =SUM(E40) -> 2,120.2 | F36: 6,425.5 | G36: 6,425.5 | H36: 6,425.5 | I36: 6,425.5 | J36: 6,425.5
B37: областной бюджет | C37: =SUM(D37:J37) -> 1,214.7 | D37: =SUM(D41) -> 1,214.7 | E37: =SUM(E41) -> 0.0 | F37: 0.0 | G37: 0.0 | H37: 0.0 | I37: 0.0 | J37: 0.0
A38: Мероприятие 1 Благоустройство дворовых территорий Североуральского городского округа
B39: Всего, из них | C39: =SUM(D39:J39) -> 37,784.1 | D39: =D40+D41 -> 3,536.4 | E39: =SUM(E40) -> 2,120.2 | F39: 6,425.5 | G39: 6,425.5 | H39: 6,425.5 | I39: 6,425.5 | J39: 6,425.5 | K39: 4
B40: местный бюджет | C40: =SUM(D40:J40) -> 36,569.4 | D40: 2,321.7 | E40: 2,120.2 | F40: 6,425.5 | G40: =SUM(F40) -> 6,425.5 | H40: =SUM(G40) -> 6,425.5 | I40: =SUM(H40) -> 6,425.5 | J40: =SUM(I40) -> 6,425.5
B41: областной бюджет | C41: =D41+E41+F41+G41+H41+I41+J41 -> 1,214.7 | D41: 1,214.7 | E41: 0.0 | F41: 0.0 | G41: 0.0 | H41: 0.0 | I41: 0.0 | J41: 0.0
A42: 3. Прочие нужды
B43: Всего по направлению «Прочие нужды», всего, в том числе: | C43: =SUM(D43:J43) -> 144,189.8 | D43: =SUM(D44) -> 22,188.8 | E43: =SUM(E44) -> 20,686.0 | F43: 20,263.0 | G43: 20,263.0 | H43: 20,263.0 | I43: 20,263.0 | J43: 20,263.0 | K43: Х
B44: местный бюджет | C44: =SUM(D44:J44) -> 144,189.8 | D44: =SUM(D51+D54+D57+D60+D47) -> 22,188.8 | E44: =SUM(E51+E54+E57+E60+E47) -> 20,686.0 | F44: 20,263.0 | G44: 20,263.0 | H44: 20,263.0 | I44: 20,263.0 | J44: 20,263.0
A45: Мероприятие 1 Благоустройство дворовых территорий Североуральского городского округа
B46: Всего, из них | C46: =SUM(D46:J46) -> 310.9 | D46: =D47+D48 -> 310.9 | E46: =SUM(E47) -> 0.0 | F46: 0.0 | G46: 0.0 | H46: 0.0 | I46: 0.0 | J46: 0.0 | K46: 4
B47: местный бюджет | C47: =SUM(D47:J47) -> 310.9 | D47: 310.9 | E47: 0.0 | F47: 0.0 | G47: =SUM(F47) -> 0.0 | H47: =SUM(G47) -> 0.0 | I47: =SUM(H47) -> 0.0 | J47: =SUM(I47) -> 0.0
B48: областной бюджет | C48: =D48+E48+F48+G48+H48+I48+J48 -> 0.0 | D48: 0.0 | E48: 0.0 | F48: 0.0 | G48: 0.0 | H48: 0.0 | I48: 0.0 | J48: 0.0
A49: Мероприятие 2 - Уличное освещение
B50: Всего, из них | C50: =SUM(D50:J50) -> 90,600.0 | D50: =SUM(D51) -> 12,001.0 | E50: 13,000.0 | F50: 13,119.8 | G50: 13,119.8 | H50: 13,119.8 | I50: 13,119.8 | J50: 13,119.8 | K50: 7
B51: местный бюджет | C51: =SUM(D51:J51) -> 90,600.0 | D51: 12,001.0 | E51: 13,000.0 | F51: 13,119.8 | G51: =SUM(F51) -> 13,119.8 | H51: =SUM(G51) -> 13,119.8 | I51: =SUM(H51) -> 13,119.8 | J51: =SUM(I51) -> 13,119.8
A52: Мероприятие 3 - Озеленение (цветники, валка сухих деревьев)
B53: Всего, из них | C53: =SUM(D53:J53) -> 15,743.3 | D53: =SUM(D54) -> 2,890.9 | E53: 2,056.4 | F53: 2,159.2 | G53: 2,159.2 | H53: 2,159.2 | I53: 2,159.2 | J53: 2,159.2 | K53: 9
B54: местный бюджет | C54: =SUM(D54:J54) -> 15,743.3 | D54: 2,890.9 | E54: 2,056.4 | F54: 2,159.2 | G54: =SUM(F54) -> 2,159.2 | H54: =SUM(G54) -> 2,159.2 | I54: =SUM(H54) -> 2,159.2 | J54: =SUM(I54) -> 2,159.2
A55: Мероприятие 4 - Организация и содержание мест захоронения
B56: Всего, из них | C56: =SUM(D56:J56) -> 15,855.4 | D56: =SUM(D57) -> 2,263.1 | E56: 2,594.8 | F56: 2,199.5 | G56: 2,199.5 | H56: 2,199.5 | I56: 2,199.5 | J56: 2,199.5 | K56: 14
B57: местный бюджет | C57: =SUM(D57:J57) -> 15,855.4 | D57: 2,263.1 | E57: 2,594.8 | F57: 2,199.5 | G57: =SUM(F57) -> 2,199.5 | H57: =SUM(G57) -> 2,199.5 | I57: =SUM(H57) -> 2,199.5 | J57: =SUM(I57) -> 2,199.5
A58: Мероприятие 5 - Прочие мероприятия по благоустройству
B59: Всего, в том числе: | C59: =SUM(D59:J59) -> 21,680.2 | D59: =SUM(D60) -> 4,722.9 | E59: 3,034.8 | F59: =SUM(F60) -> 2,784.5 | G59: 2,784.5 | H59: 2,784.5 | I59: 2,784.5 | J59: 2,784.5 | K59: 5,11,12,13,15
B60: местный бюджет | C60: =SUM(D60:J60) -> 21,680.2 | D60: =SUM(D63+D66+D69+D72+D75+D81+D78+D84) -> 4,722.9 | E60: =SUM(E63+E66+E69+E72+E75+E81+E78+E84) -> 3,034.8 | F60: 2,784.5 | G60: 2,784.5 | H60: 2,784.5 | I60: 2,784.5 | J60: 2,784.5
A61: - Содержание памятников
B62: Всего: | C62: =SUM(C63) -> 1691.7 | D62: 369.2 | E62: 220.0 | F62: 220.5 | G62: 220.5 | H62: 220.5 | I62: 220.5 | J62: 220.5 | K62: 15
B63: местный бюджет | C63: =SUM(D63:J63) -> 1691.7 | D63: 369.2 | E63: 220.0 | F63: 220.5 | G63: 220.5 | H63: =SUM(G63) -> 220.5 | I63: =SUM(H63) -> 220.5 | J63: =SUM(I63) -> 220.5
A64: - Проведение комплекса профилактических работ по уходу за объектами благоустройства
B65: Всего: | C65: =SUM(C66) -> 1295.7 | D65: =SUM(D66) -> 1098.7 | E65: =SUM(E66) -> 31.5 | F65: 33.1 | G65: 33.1 | H65: 33.1 | I65: 33.1 | J65: 33.1 | K65: 5
B66: местный бюджет | C66: =SUM(D66:J66) -> 1295.7 | D66: 1098.7 | E66: 31.5 | F66: 33.1 | G66: 33.1 | H66: =SUM(G66) -> 33.1 | I66: =SUM(H66) -> 33.1 | J66: =SUM(I66) -> 33.1
A67: - Регулирование численности безнадзорных животных
B68: Всего: | C68: =SUM(C69) -> 3781.5 | D68: =SUM(D69) -> 500.0 | E68: =SUM(E69) -> 525.0 | F68: 551.3 | G68: 551.3 | H68: 551.3 | I68: 551.3 | J68: 551.3 | K68: 11
B69: местный бюджет | C69: =SUM(D69:J69) -> 3781.5 | D69: 500.0 | E69: 525.0 | F69: 551.3 | G69: 551.3 | H69: =SUM(G69) -> 551.3 | I69: =SUM(H69) -> 551.3 | J69: =SUM(I69) -> 551.3
A70: - Содержание биоямы (скотомогильник)
B71: Всего: | C71: =SUM(C72) -> 575.6 | D71: =SUM(D72) -> 116.1 | E71: =SUM(E72) -> 73.5 | F71: 77.2 | G71: 77.2 | H71: 77.2 | I71: 77.2 | J71: 77.2 | K71: 13
B72: местный бюджет | C72: =SUM(D72:J72) -> 575.6 | D72: 116.1 | E72: 73.5 | F72: 77.2 | G72: 77.2 | H72: =SUM(G72) -> 77.2 | I72: =SUM(H72) -> 77.2 | J72: =SUM(I72) -> 77.2
A73: - Обустройство новогодних городков
B74: Всего: | C74: =SUM(C75) -> 13,111.8 | D74: =SUM(D75) -> 1,685.5 | E74: =SUM(E75) -> 2,134.8 | F74: 1,858.3 | G74: 1,858.3 | H74: 1,858.3 | I74: 1,858.3 | J74: 1,858.3 | K74: 5
B75: местный бюджет | C75: =SUM(D75:J75) -> 13,111.8 | D75: 1,685.5 | E75: 2,134.8 | F75: 1,858.3 | G75: 1,858.3 | H75: =SUM(G75) -> 1,858.3 | I75: =SUM(H75) -> 1,858.3 | J75: =SUM(I75) -> 1,858.3
A76: - Приобретение декоративного освещения для улиц города Североуральска
B77: Всего: | C77: =SUM(C78) -> 773.4 | D77: =SUM(D78) -> 773.4 | E77: =SUM(E78) -> 0.0 | F77: 0.0 | G77: 0.0 | H77: 0.0 | I77: 0.0 | J77: 0.0 | K77: 5
B78: местный бюджет | C78: =SUM(D78:J78) -> 773.4 | D78: 773.4 | E78: 0.0 | F78: 0.0 | G78: 0.0 | H78: =SUM(G78) -> 0.0 | I78: =SUM(H78) -> 0.0 | J78: =SUM(I78) -> 0.0
A79: - Акарицидная обработка общественных мест
B80: Всего: | C80: =SUM(C81) -> 362.5 | D80: =SUM(D81) -> 92.0 | E80: =SUM(E81) -> 50.0 | F80: 44.1 | G80: 44.1 | H80: 44.1 | I80: 44.1 | J80: 44.1 | K80: 12
B81: местный бюджет | C81: =SUM(D81:J81) -> 362.5 | D81: 92.0 | E81: 50.0 | F81: 44.1 | G81: 44.1 | H81: =SUM(G81) -> 44.1 | I81: =SUM(H81) -> 44.1 | J81: =SUM(I81) -> 44.1
A82: - Приобретение грунта плодородного (земли садовой)
B83: Всего: | C83: =SUM(C84) -> 88.0 | D83: =SUM(D84) -> 88.0 | E83: =SUM(E84) -> 0.0 | F83: 0 | G83: 0 | H83: 0 | I83: 0 | J83: 0 | K83: 9
B84: местный бюджет | C84: =SUM(D84:J84) -> 88.0 | D84: 88.0 | E84: 0.0 | F84: 0.0 | G84: 0.0 | H84: =SUM(G84) -> 0.0 | I84: =SUM(H84) -> 0.0 | J84: =SUM(I84) -> 0.0
A85: Подпрограмма 2: Муниципальная программа по энергосбережению и повышению энергетической эффективности объектов Североуральского городского округа
B86: Всего по подпрограмме 2, в том числе | C86: =SUM(D86:J86) -> 38,312.0 | D86: =SUM(D87:D89) -> 9,165.5 | E86: =SUM(E87:E89) -> 6,467.5 | F86: 4,535.8 | G86: 4,535.8 | H86: 4,535.8 | I86: 4,535.8 | J86: 4,535.8 | K86: Х
B87: местный бюджет | C87: =SUM(D87:J87) -> 31,967.6 | D87: =SUM(D92+D115) -> 2,821.1 | E87: =SUM(E92+E115) -> 6,467.5 | F87: =F92+F115 -> 4,535.8 | G87: =SUM(G92+G115) -> 4,535.8 | H87: 4,535.8 | I87: 4,535.8 | J87: 4,535.8
B88: областной бюджет | C88: =SUM(D88:J88) -> 6,344.4 | D88: =SUM(D93+D116) -> 6,344.4 | E88: =SUM(E93+E116) -> 0.0 | F88: =SUM(F93+F116) -> 0.0 | G88: 0.0 | H88: 0.0 | I88: 0.0 | J88: 0.0
B89: федеральный бюджет | C89: =SUM(D89:J89) -> 0.0 | D89: 0.0 | E89: =SUM(E94+E116) -> 0.0 | F89: 0.0 | G89: 0.0 | H89: 0.0 | I89: 0.0 | J89: 0.0
A90: 1. Капитальные вложения
B91: Всего по направлению «Капитальные вложения», всего, в том числе | C91: =SUM(C92:C94) -> 18,173.6 | D91: =SUM(D92:D94) -> 4,173.6 | E91: =SUM(E92:E94) -> 4,000.0 | F91: 2,000.0 | G91: 2,000.0 | H91: 2,000.0 | I91: 2,000.0 | J91: 2,000.0 | K91: Х
B92: местный бюджет | C92: =SUM(D92:J92) -> 14,829.2 | D92: =SUM(D101) -> 829.2 | E92: =SUM(E101) -> 4,000.0 | F92: 2,000.0 | G92: 2,000.0 | H92: 2,000.0 | I92: 2,000.0 | J92: 2,000.0
B93: областной бюджет | C93: =SUM(D93:J93) -> 3,344.4 | D93: =SUM(D102) -> 3,344.4 | E93: =SUM(E102) -> 0.0 | F93: 0.0 | G93: 0.0 | H93: 0.0 | I93: 0.0 | J93: 0.0
B94: федеральный бюджет | C94: =SUM(D94:J94) -> 0.0 | D94: =SUM(D103) -> 0.0 | E94: =SUM(E103) -> 0.0 | F94: 0.0 | G94: 0.0 | H94: 0.0 | I94: 0.0 | J94: 0.0
A95: 1.1. Бюджетные инвестиции в объекты капитального строительства
B96: Бюджетные инвестиции в объекты капитального строительства всего, в том числе | C96: 0 | D96: 0 | E96: 0 | F96: 0 | G96: 0 | H96: 0 | I96: 0 | J96: 0 | K96: Х
B97: местный бюджет | C97: 0 | D97: 0 | E97: 0 | F97: 0 | G97: 0 | H97: 0 | I97: 0 | J97: 0
B98: областной бюджет
A99: 1.2. Иные капитальные вложения
B100: Всего, в том числе | C100: =SUM(C101:C103) -> 18,173.6 | D100: =SUM(D101:D103) -> 4,173.6 | E100: =SUM(E101:E103) -> 4,000.0 | F100: 2,000.0 | G100: 2,000.0 | H100: 2,000.0 | I100: 2,000.0 | J100: 2,000.0 | K100: Х
B101: местный бюджет | C101: =SUM(D101:J101) -> 14,829.2 | D101: =SUM(D106+D111) -> 829.2 | E101: =SUM(E106+E111) -> 4,000.0 | F101: 2,000.0 | G101: 2,000.0 | H101: 2,000.0 | I101: 2,000.0 | J101: 2,000.0
B102: областной бюджет | C102: =SUM(D102:J102) -> 3,344.4 | D102: =SUM(D107+D112) -> 3,344.4 | E102: =SUM(E107+E112) -> 0.0 | F102: 0.0 | G102: 0.0 | H102: 0.0 | I102: 0.0 | J102: 0.0
B103: федеральный бюджет | C103: =SUM(D103:J103) -> 0.0 | D103: =SUM(D108) -> 0.0 | E103: =SUM(E108) -> 0.0 | F103: 0.0 | G103: 0.0 | H103: 0.0 | I103: 0.0 | J103: 0.0
A104: Мероприятие 6- Реконструкция, модернизация водопроводных сетей, сетей системы водоотведения с заменой (без замены) оборудования с более высоким КПД, установка регулируемого привода, реконструкция тепловых сетей, в том числе тепловых пунктов, котельных
B105: Всего, из них | C105: =SUM(C106:C108) -> 17,037.4 | D105: =SUM(D106:D108) -> 3,037.4 | E105: =SUM(E106:E108) -> 4,000.0 | F105: 2,000.0 | G105: 2,000.0 | H105: 2,000.0 | I105: 2,000.0 | J105: 2,000.0 | K105: 27
B106: местный бюджет | C106: =SUM(D106:J106) -> 14,281.0 | D106: 281.0 | E106: 4,000.0 | F106: 2,000.0 | G106: =SUM(F106) -> 2,000.0 | H106: 2,000.0 | I106: 2,000.0 | J106: 2,000.0
B107: областной бюджет | C107: =SUM(D107:J107) -> 2,756.4 | D107: 2,756.4 | E107: 0.0 | F107: =SUM(E107*1.05) -> 0.0 | G107: 0.0 | H107: 0.0 | I107: 0.0 | J107: 0.0
B108: федеральный бюджет | C108: =SUM(D108:J108) -> 0.0 | D108: 0.0 | E108: 0.0 | F108: 0.0 | G108: =SUM(F108) -> 0.0 | H108: =SUM(G108) -> 0.0 | I108: =SUM(H108) -> 0.0 | J108: =SUM(I108) -> 0.0
A109: Мероприятие 9 - Закупка и установка осветительного оборудования с заменой неэффективного на энергосберегающее, в том числе замена ламп накаливания на энергосберегающие, модернизация сетей уличного освещения, проектно-сметные работы, экспертиза проектно-сметной документации
B110: всего, из них: | C110: =SUM(C111:C112) -> 1,136.2 | D110: =SUM(D111:D112) -> 1,136.2 | E110: =SUM(E111:E112) -> 0.0 | F110: 0.0 | G110: 0.0 | H110: 0.0 | I110: 0.0 | J110: 0.0 | K110: 26
B111: местный бюджет | C111: =SUM(D111:J111) -> 548.2 | D111: 548.2 | E111: 0.0 | F111: 0.0 | G111: =SUM(F111) -> 0.0 | H111: =SUM(G111) -> 0.0 | I111: =SUM(H111) -> 0.0 | J111: =SUM(I111) -> 0.0
B112: областной бюджет | C112: =SUM(D112:J112) -> 588.0 | D112: 588.0 | E112: 0.0 | F112: 0.0 | G112: 0.0 | H112: =SUM(G112) -> 0.0 | I112: =SUM(H112) -> 0.0 | J112: =SUM(I112) -> 0.0
A113: 3. Прочие нужды
B114: Всего по направлению «Прочие нужды», всего, в том числе: | C114: =SUM(D114:J114) -> 20,138.4 | D114: =SUM(D115:D116) -> 4,991.9 | E114: =SUM(E115:E116) -> 2,467.5 | F114: 2,535.8 | G114: 2,535.8 | H114: 2,535.8 | I114: 2,535.8 | J114: 2,535.8 | K114: Х
B115: местный бюджет | C115: =SUM(D115:J115) -> 17,138.4 | D115: =SUM(D119+D128+D132+D135) -> 1,991.9 | E115: =SUM(E119+E128+E132+E135) -> 2,467.5 | F115: 2,535.8 | G115: 2,535.8 | H115: 2,535.8 | I115: 2,535.8 | J115: 2,535.8
B116: областной бюджет | C116: =SUM(D116:J116) -> 3,000.0 | D116: =SUM(D129+D120) -> 3,000.0 | E116: =SUM(E129+E120) -> 0.0 | F116: 0.0 | G116: 0.0 | H116: 0.0 | I116: 0.0 | J116: 0.0
A117: Мероприятие 7 - Оснащение зданий (строений, сооружений), находящихся в муниципальной собственности, многоквартирных жилых домов, жилых помещений, квартир приборами учета используемых энергетических ресурсов, в том числе разработка проектно-сметной документации
B118: всего, в том числе: | C118: =SUM(D118:J118) -> 6,794.0 | D118: =SUM(D119:D120) -> 4,200.0 | E118: 415.0 | F118: 435.8 | G118: 435.8 | H118: 435.8 | I118: 435.8 | J118: 435.8 | K118: 19,21,22,23,24
B119: местный бюджет | C119: =SUM(D119:J119) -> 3,794.0 | D119: =SUM(D124) -> 1,200.0 | E119: =SUM(E124) -> 415.0 | F119: 435.8 | G119: 435.8 | H119: 435.8 | I119: 435.8 | J119: 435.8
B120: областной бюджет | C120: =SUM(D120:J120) -> 3,000.0 | D120: =SUM(D125) -> 3,000.0 | E120: =SUM(E121) -> 0.0 | F120: 0.0 | G120: 0.0 | H120: 0.0 | I120: 0.0 | J120: 0.0
B121: федеральный бюджет | C121: =SUM(D121:J121) -> 0.0 | D121: 0.0 | E121: 0.0 | F121: 0.0 | G121: =SUM(F121) -> 0.0 | H121: =SUM(G121) -> 0.0 | I121: =SUM(H121) -> 0.0 | J121: =SUM(I121) -> 0.0
A122: - Оснащение жилых домов (субсидии)
B123: Всего: | C123: =SUM(C124:C125) -> 6,794.0 | D123: =SUM(D124:D125) -> 4,200.0 | E123: =SUM(E124) -> 415.0 | F123: 435.8 | G123: 435.8 | H123: 435.8 | I123: 435.8 | J123: 435.8 | K123: 19,21,22,23,24
B124: местный бюджет | C124: =SUM(D124:J124) -> 3,794.0 | D124: 1,200.0 | E124: 415.0 | F124: 435.8 | G124: =SUM(F124) -> 435.8 | H124: =SUM(G124) -> 435.8 | I124: =SUM(H124) -> 435.8 | J124: =SUM(I124) -> 435.8
B125: областной бюджет | C125: =SUM(D125:J125) -> 3,000.0 | D125: 3,000.0 | E125: 0.0 | F125: 0.0 | G125: 0.0 | H125: 0.0 | I125: 0.0 | J125: 0.0
A126: Мероприятие 9 - Закупка и установка осветительного оборудования с заменой неэффективного на энергосберегающее, в том числе замена ламп накаливания на энергосберегающие, модернизация сетей уличного освещения, проектно-сметные работы, экспертиза проектно-сметной документации
B127: всего, из них: | C127: =SUM(C128:C129) -> 12,911.9 | D127: =SUM(D128:D129) -> 411.9 | E127: =SUM(E128:E129) -> 2,000.0 | F127: 2,100.0 | G127: 2,100.0 | H127: 2,100.0 | I127: 2,100.0 | J127: 2,100.0 | K127: 26
B128: местный бюджет | C128: =SUM(D128:J128) -> 12,911.9 | D128: 411.9 | E128: 2,000.0 | F128: 2,100.0 | G128: =SUM(F128) -> 2,100.0 | H128: 2,100.0 | I128: 2,100.0 | J128: 2,100.0
B129: областной бюджет | C129: =SUM(D129:J129) -> 0.0 | D129: 0.0 | E129: 0.0 | F129: 0.0 | G129: 0.0 | H129: 0.0 | I129: 0.0 | J129: 0.0
A130: Мероприятие 10 - Разработка схемы водоснабжения Североуральского городского округа
B131: всего, из них: | C131: =SUM(D131:J131) -> 380.0 | D131: =SUM(D132) -> 380.0 | E131: =SUM(E132) -> 0.0 | F131: 0.0 | G131: 0.0 | H131: 0.0 | I131: 0.0 | J131: 0.0 | K131: 28
B132: местный бюджет | C132: =SUM(D132:J132) -> 380.0 | D132: 380.0 | E132: 0.0 | F132: 0.0 | G132: =SUM(F132) -> 0.0 | H132: =SUM(G132) -> 0.0 | I132: =SUM(H132) -> 0.0 | J132: =SUM(I132) -> 0.0
A133: Мероприятие 11 - Прочие мероприятия (оформление актов выбора трассы под строительство водопроводов, сетей уличного освещения, газопроводов и т.п.)
B134: всего, из них: | C134: =SUM(D134:J134) -> 52.5 | D134: =SUM(D135) -> 0.0 | E134: =SUM(E135) -> 52.5 | F134: 0.0 | G134: 0.0 | H134: 0.0 | I134: 0.0 | J134: 0.0 | K134: 29
B135: местный бюджет | C135: =SUM(D135:J135) -> 52.5 | D135: 0.0 | E135: 52.5 | F135: 0.0 | G135: =SUM(F135) -> 0.0 | H135: =SUM(G135) -> 0.0 | I135: =SUM(H135) -> 0.0 | J135: =SUM(I135) -> 0.0
A136: Подпрограмма 3: Развитие лесного хозяйства на территории Североуральского городского округа
B137: Всего по подпрограмме 1, всего, в том числе | C137: =SUM(C138:C138) -> 1,968.1 | D137: =SUM(D138) -> 774.1 | E137: =SUM(E138) -> 191.0 | F137: 200.6 | G137: 200.6 | H137: 200.6 | I137: 200.6 | J137: 200.6 | K137: Х
B138: местный бюджет | C138: =SUM(D138:J138) -> 1,968.1 | D138: =SUM(D150) -> 774.1 | E138: =SUM(E150) -> 191.0 | F138: 200.6 | G138: 200.6 | H138: 200.6 | I138: 200.6 | J138: 200.6
A139: 1. Капитальные вложения
B140: Всего по направлению «Капитальные вложения», всего, в том числе | C140: 0 | D140: 0 | E140: 0 | F140: 0 | G140: 0 | H140: 0 | I140: 0 | J140: 0 | K140: Х
B141: местный бюджет | C141: 0 | D141: 0 | E141: 0 | F141: 0 | G141: 0 | H141: 0 | I141: 0 | J141: 0
A142: 1.1. Бюджетные инвестиции в объекты капитального строительства
B143: Бюджетные инвестиции в объекты капитального строительства всего, в том числе: | C143: =SUM(C144) -> 0 | D143: =SUM(D144) -> 0 | E143: 0 | F143: 0 | G143: 0 | H143: 0 | I143: 0 | J143: 0 | K143: Х
B144: местный бюджет | C144: 0 | D144: 0 | E144: 0 | F144: 0 | G144: 0 | H144: 0 | I144: 0 | J144: 0
A145: 1.2. Иные капитальные вложения
B146: Всего, в том числе: | C146: =SUM(A148) -> 0 | D146: 0 | E146: 0 | F146: 0 | G146: 0 | H146: 0 | I146: 0 | J146: 0 | K146: Х
B147: местный бюджет | C147: 0 | D147: 0 | E147: 0 | F147: 0 | G147: 0 | H147: 0 | I147: 0 | J147: 0
A148: 3. Прочие нужды
B149: Всего, из них | C149: =SUM(C150:C150) -> 1,968.1 | D149: 774.1 | E149: 191.0 | F149: 200.6 | G149: 200.6 | H149: 200.6 | I149: 200.6 | J149: 200.6 | K149: Х
B150: местный бюджет | C150: =SUM(D150:J150) -> 1,968.1 | D150: =SUM(D153) -> 774.1 | E150: =SUM(E153) -> 191.0 | F150: 200.6 | G150: 200.6 | H150: 200.6 | I150: 200.6 | J150: 200.6
A151: Мероприятие 12 - Развитие лесного хозяйства на территории Североуральского городского округа
B152: Всего, в том числе: | C152: =SUM(D152:J152) -> 1,968.1 | D152: =SUM(D153) -> 774.1 | E152: =SUM(E153) -> 191.0 | F152: 200.6 | G152: 200.6 | H152: 200.6 | I152: 200.6 | J152: 200.6 | K152: 33
B153: местный бюджет | C153: =SUM(D153:J153) -> 1,968.1 | D153: =SUM(D156) -> 774.1 | E153: =SUM(E156) -> 191.0 | F153: 200.6 | G153: 200.6 | H153: 200.6 | I153: 200.6 | J153: 200.6
A154: - Межевание городских лесов, постановка на кадастровый учет
B155: Всего: | C155: =SUM(C156) -> 1,968.1 | D155: =SUM(D156) -> 774.1 | E155: =SUM(E156) -> 191.0 | F155: 200.6 | G155: 200.6 | H155: 200.6 | I155: 200.6 | J155: 200.6 | K155: 33
B156: местный бюджет | C156: =SUM(D156:J156) -> 1,968.1 | D156: 774.1 | E156: 191.0 | F156: 200.6 | G156: =SUM(F156) -> 200.6 | H156: =SUM(G156) -> 200.6 | I156: =SUM(H156) -> 200.6 | J156: =SUM(I156) -> 200.6
A157: Подпрограмма 4 : Переселение граждан на территории Североуральского городского округа из аварийного жилищного фонда с учетом необходимости развития малоэтажного жилищного строительства
B158: Всего по подпрограмме 4, всего, в том числе | C158: =SUM(C159:C161) -> 516,122.5 | D158: =SUM(D159:D161) -> 223,750.0 | E158: 184,926.5 | F158: 0.0 | G158: 26861.5 | H158: 26861.5 | I158: 26861.5 | J158: 26861.5 | K158: Х
B159: местный бюджет | C159: =SUM(D159:J159) -> 188,296.6 | D159: =SUM(D164) -> 40,275.0 | E159: =SUM(E164) -> 40,575.6 | F159: 0.0 | G159: 26861.5 | H159: 26861.5 | I159: 26861.5 | J159: 26861.5
B160: областной бюджет | C160: =SUM(D160:J160) -> 215,223.8 | D160: =SUM(D165) -> 101,657.0 | E160: =SUM(E165) -> 113,566.8 | F160: 0.0 | G160: 0.0 | H160: 0.0 | I160: 0.0 | J160: 0.0
B161: федеральный бюджет | C161: =SUM(D161:J161) -> 112,602.1 | D161: =SUM(D166) -> 81,818.0 | E161: =SUM(E166) -> 30,784.1 | F161: 0.0 | G161: 0.0 | H161: 0.0 | I161: 0.0 | J161: 0.0
A162: 1. Капитальные вложения
B163: Всего по направлению «Капитальные вложения», всего, в том числе | C163: =SUM(C164:C166) -> 516,122.5 | D163: =SUM(D164:D166) -> 223,750.0 | E163: =SUM(E164:E166) -> 184,926.5 | F163: 0.0 | G163: 26861.5 | H163: 26861.5 | I163: 26861.5 | J163: 26861.5 | K163: Х
B164: местный бюджет | C164: =SUM(D164:J164) -> 188,296.6 | D164: =SUM(D177) -> 40,275.0 | E164: =SUM(E177) -> 40,575.6 | F164: 0.0 | G164: 26861.5 | H164: 26861.5 | I164: 26861.5 | J164: 26861.5
B165: областной бюджет | C165: =SUM(D165:J165) -> 215,223.8 | D165: =SUM(D178) -> 101,657.0 | E165: =SUM(E178) -> 113,566.8 | F165: 0.0 | G165: 0.0 | H165: 0.0 | I165: 0.0 | J165: 0.0
B166: федеральный бюджет | C166: =SUM(D166:J166) -> 112,602.1 | D166: =SUM(D179) -> 81,818.0 | E166: =SUM(E179) -> 30,784.1 | F166: 0.0 | G166: 0.0 | H166: 0.0 | I166: 0.0 | J166: 0.0
A167: 1.1. Бюджетные инвестиции в объекты капитального строительства
B168: Бюджетные инвестиции в объекты капитального строительства всего, в том числе: | C168: =SUM(C169) -> 0 | D168: =SUM(D169) -> 0 | E168: 0 | F168: 0 | G168: 0 | H168: 0 | I168: 0 | J168: 0 | K168: Х
B169: местный бюджет | C169: 0 | D169: 0 | E169: 0 | F169: 0 | G169: 0 | H169: 0 | I169: 0 | J169: 0
A170: 1.2. Иные капитальные вложения
B171: Всего, в том числе: | C171: =SUM(D171:J171) -> 502,562.4 | D171: =SUM(D172:D174) -> 210,189.9 | E171: =SUM(E172:E174) -> 184,926.5 | F171: 0.0 | G171: 26,861.5 | H171: 26,861.5 | I171: 26,861.5 | J171: 26,861.5 | K171: Х
B172: местный бюджет | C172: =SUM(D172:J172) -> 188,296.6 | D172: =SUM(D177) -> 40,275.0 | E172: 40,575.6 | F172: 0.0 | G172: 26,861.5 | H172: 26,861.5 | I172: 26,861.5 | J172: 26,861.5
B173: областной бюджет | C173: =SUM(D173:J173) -> 215,223.8 | D173: =SUM(D178) -> 101,657.0 | E173: =SUM(E178) -> 113,566.8 | F173: 0.0 | G173: 0.0 | H173: 0.0 | I173: 0.0 | J173: 0.0
B174: федеральный бюджет | C174: =SUM(D174:J174) -> 99,042.0 | D174: 68,257.9 | E174: =SUM(E179) -> 30,784.1 | F174: 0.0 | G174: 0.0 | H174: 0.0 | I174: 0.0 | J174: 0.0
A175: Мероприятие 13 - Переселение граждан на территории Североуральского городского округа из аварийного жилищного фонда с учетом необходимости развития малоэтажного жилищного строительства
B176: Всего по направлению «Капитальные вложения», всего, в том числе | C176: =SUM(D176:J176) -> 516,122.5 | D176: =SUM(D177:D179) -> 223,750.0 | E176: =SUM(E177:E179) -> 184,926.5 | F176: 0.0 | G176: 26861.5 | H176: 26861.5 | I176: 26861.5 | J176: 26861.5 | K176: 37, 39, 40
B177: местный бюджет | C177: =SUM(D177:J177) -> 188,296.6 | D177: 40,275.0 | E177: 40,575.6 | F177: 0.0 | G177: 26,861.5 | H177: 26,861.5 | I177: 26,861.5 | J177: 26,861.5
B178: областной бюджет | C178: =SUM(D178:J178) -> 215,223.8 | D178: 101,657.0 | E178: 113,566.8 | F178: 0.0 | G178: 0 | H178: 0 | I178: 0 | J178: 0
B179: федеральный бюджет | C179: =SUM(D179:J179) -> 112,602.1 | D179: 81,818.0 | E179: 30,784.1 | F179: 0.0 | G179: 0 | H179: 0 | I179: 0 | J179: 0
A180: 3 Прочие нужды
B181: Всего, в том числе: | C181: 0 | D181: 0 | E181: 0 | F181: 0 | G181: 0 | H181: 0 | I181: 0 | J181: 0 | K181: Х
B182: местный бюджет | C182: 0 | D182: 0 | E182: 0 | F182: 0 | G182: 0 | H182: 0 | I182: 0 | J182: 0
A183: Подпрограмма 5 : Содержание и капитальный ремонт общего имущества муниципального жилищного фонда на территории Североуральского городского округа
B184: Всего по подпрограмме 5, в том числе | C184: =C185+C186+C187 -> 65,441.1 | D184: 9,057.0 | E184: 9,021.6 | F184: 9,472.5 | G184: 9,472.5 | H184: 9,472.5 | I184: 9,472.5 | J184: 9,472.5 | K184: Х
B185: областной бюджет | C185: =SUM(D185:J185) -> 0.0 | D185: =SUM(D199) -> 0.0 | E185: =SUM(E199) -> 0.0 | F185: 0.0 | G185: 0.0 | H185: 0.0 | I185: 0.0 | J185: 0.0
B186: федеральный бюджет | C186: =SUM(D186:J186) -> 0.0 | D186: =SUM(D200) -> 0.0 | E186: =SUM(E200) -> 0.0 | F186: 0.0 | G186: 0.0 | H186: 0.0 | I186: 0.0 | J186: 0.0
B187: местный бюджет | C187: =SUM(D187:J187) -> 65,441.1 | D187: =SUM(D201) -> 9,057.0 | E187: =SUM(E201) -> 9,021.6 | F187: 9,472.5 | G187: 9,472.5 | H187: 9,472.5 | I187: 9,472.5 | J187: 9,472.5
A188: 1. Капитальные вложения
B189: Всего по направлению «Капитальные вложения», всего, в том числе | C189: =SUM(C190) -> 0 | D189: =SUM(D190) -> 0 | E189: 0 | F189: 0 | G189: 0 | H189: 0 | I189: 0 | J189: 0 | K189: Х
B190: местный бюджет | C190: 0 | D190: 0 | E190: 0 | F190: 0 | G190: 0 | H190: 0 | I190: 0 | J190: 0
A191: 1.1. Бюджетные инвестиции в объекты капитального строительства
B192: Бюджетные инвестиции в объекты капитального строительства всего, в том числе: | C192: =SUM(C193) -> 0 | D192: =SUM(D193) -> 0 | E192: 0 | F192: 0 | G192: 0 | H192: 0 | I192: 0 | J192: 0 | K192: Х
B193: местный бюджет | C193: =SUM(D193:J193) -> 0 | D193: 0 | E193: 0 | F193: 0 | G193: 0 | H193: 0 | I193: 0 | J193: 0
A194: 1.2. Иные капитальные вложения
B195: Всего, в том числе: | C195: 0 | D195: =SUM(C193) -> 0 | E195: 0 | F195: 0 | G195: 0 | H195: 0 | I195: 0 | J195: 0 | K195: Х
B196: местный бюджет | C196: =SUM(D196:J196) -> 0 | D196: 0 | E196: 0 | F196: 0 | G196: 0 | H196: 0 | I196: 0 | J196: 0
A197: 3 Прочие нужды
B198: Всего, в том числе: | C198: =SUM(C199:C201) -> 65,441.1 | D198: =SUM(D199:D201) -> 9,057.0 | E198: =SUM(E199:E201) -> 9,021.6 | F198: 9,472.5 | G198: 9,472.5 | H198: 9,472.5 | I198: 9,472.5 | J198: 9,472.5 | K198: Х
B199: областной бюджет | C199: =SUM(D199:J199) -> 0.0 | D199: =SUM(D217) -> 0.0 | E199: =SUM(E217) -> 0.0 | F199: 0.0 | G199: 0.0 | H199: 0.0 | I199: 0.0 | J199: 0.0
B200: федеральный бюджет | C200: =SUM(D200:J200) -> 0.0 | D200: =SUM(D218) -> 0.0 | E200: =SUM(E218) -> 0.0 | F200: 0.0 | G200: 0.0 | H200: 0.0 | I200: 0.0 | J200: 0.0
B201: местный бюджет | C201: =SUM(D201:J201) -> 65,441.1 | D201: =D204+D207+D210+D213+D216 -> 9,057.0 | E201: 9,021.6 | F201: 9,472.5 | G201: 9,472.5 | H201: 9,472.5 | I201: 9,472.5 | J201: 9,472.5
... 109 more rows

Sheet Лист2

Sheet Лист3
